fUST/lending_fUST_20250214
["ID","MTS","AMOUNT","RATE_DAILY","PERIOD"]
[353023815,1739489446129,-153.0,0.00013937,2]
[353023816,1739489446141,-153.0,0.00013937,2]
[353023817,1739489446153,-153.0,0.00013937,2]
[353023818,1739489446165,-153.0,0.00013937,2]
[353023819,1739489446177,-153.0,0.00013937,2]
[353023820,1739489446189,-153.0,0.00013937,2]
[353023821,1739489446201,-153.0,0.00013937,2]
[353023822,1739489446212,-153.0,0.00013937,2]
[353023823,1739489446225,-153.0,0.00013937,2]
[353023824,1739489446237,-153.0,0.00013937,2]
[353023826,1739489446248,-153.0,0.00013937,2]
[353023827,1739489446259,-153.0,0.00013937,2]
[353023828,1739489446270,-153.0,0.00013937,2]
[353023829,1739489446281,-153.0,0.00013937,2]
[353023832,1739489446439,-153.0,0.00013937,2]
[353023833,1739489446452,-153.0,0.00013937,2]
[353023834,1739489446463,-153.0,0.00013937,2]
[353023836,1739489446473,-153.0,0.00013937,2]
[353023838,1739489446483,-153.0,0.00013937,2]
[353023840,1739489446492,-153.0,0.00013937,2]
[353023842,1739489446501,-153.0,0.00013937,2]
[353023844,1739489446511,-153.0,0.00013937,2]
[353023846,1739489446521,-153.0,0.00013937,2]
[353023848,1739489446531,-153.0,0.00013937,2]
[353023850,1739489446541,-153.0,0.00013937,2]
[353023852,1739489446551,-153.0,0.00013937,2]
[353023854,1739489446560,-153.0,0.00013937,2]
[353023856,1739489446570,-153.0,0.00013937,2]
[353023858,1739489446580,-153.0,0.00013937,2]
[353023860,1739489446589,-153.0,0.00013937,2]
[353023862,1739489446599,-153.0,0.00013937,2]
[353023864,1739489446609,-153.0,0.00013937,2]
[353023866,1739489446618,-153.0,0.00013937,2]
[353023868,1739489446628,-153.0,0.00013937,2]
[353023870,1739489446637,-153.0,0.00013937,2]
[353023872,1739489446647,-153.0,0.00013937,2]
[353023874,1739489446657,-153.0,0.00013937,2]
[353023876,1739489446666,-153.0,0.00013937,2]
[353023878,1739489446676,-153.0,0.00013937,2]
[353023880,1739489446687,-153.0,0.00013937,2]
[353023882,1739489446697,-153.0,0.00013937,2]
[353023883,1739489446706,-153.0,0.00013937,2]
[353023885,1739489446715,-153.0,0.00013937,2]
[353023887,1739489446726,-153.0,0.00013937,2]
[353023889,1739489446736,-153.0,0.00013937,2]
[353023890,1739489446746,-153.0,0.00013937,2]
[353023891,1739489446756,-153.0,0.00013937,2]
[353023892,1739489446766,-153.0,0.00013937,2]
[353023893,1739489446777,-153.0,0.00013937,2]
[353023894,1739489446787,-153.0,0.00013937,2]
[353023895,1739489446797,-153.0,0.00013937,2]
[353023896,1739489446807,-153.0,0.00013937,2]
[353023897,1739489446818,-153.0,0.00013937,2]
[353023898,1739489446828,-153.0,0.00013937,2]
[353023899,1739489446839,-153.0,0.00013937,2]
[353023900,1739489446850,-153.0,0.00013937,2]
[353023901,1739489446860,-153.0,0.00013937,2]
[353023902,1739489446871,-153.0,0.00013937,2]
[353023903,1739489446881,-153.0,0.00013937,2]
[353023904,1739489446892,-153.0,0.00013937,2]
[353023905,1739489446902,-153.0,0.00013937,2]
[353023906,1739489446912,-153.0,0.00013937,2]
[353023907,1739489446922,-153.0,0.00013937,2]
[353023908,1739489446933,-153.0,0.00013937,2]
[353023909,1739489446943,-153.0,0.00013937,2]
[353023910,1739489446953,-153.0,0.00013937,2]
[353023911,1739489446963,-153.0,0.00013937,2]
[353023912,1739489446973,-153.0,0.00013937,2]
[353023913,1739489446984,-153.0,0.00013937,2]
[353023914,1739489446995,-153.0,0.00013937,2]
[353023915,1739489447005,-153.0,0.00013937,2]
[353023916,1739489447016,-153.0,0.00013937,2]
[353023917,1739489447026,-153.0,0.00013937,2]
[353023918,1739489447036,-153.0,0.00013937,2]
[353023919,1739489447047,-153.0,0.00013937,2]
[353023920,1739489447056,-153.0,0.00013937,2]
[353023921,1739489447067,-153.0,0.00013937,2]
[353023922,1739489447076,-153.0,0.00013937,2]
[353023923,1739489447086,-153.0,0.00013937,2]
[353023924,1739489447095,-153.0,0.00013937,2]
[353023925,1739489447105,-153.0,0.00013937,2]
[353023926,1739489447114,-153.0,0.00013937,2]
[353023927,1739489447123,-153.0,0.00013937,2]
[353023928,1739489447134,-153.0,0.00013937,2]
[353023929,1739489447148,-153.0,0.00013937,2]
[353023930,1739489447158,-153.0,0.00013937,2]
[353023931,1739489447168,-153.0,0.00013937,2]
[353023932,1739489447178,-153.0,0.00013937,2]
[353023933,1739489447189,-153.0,0.00013937,2]
[353023934,1739489447199,-153.0,0.00013937,2]
[353023935,1739489447209,-153.0,0.00013937,2]
[353023936,1739489447221,-153.0,0.00013937,2]
[353023937,1739489447231,-153.0,0.00013937,2]
[353023938,1739489447241,-153.0,0.00013937,2]
[353023939,1739489447251,-153.0,0.00013937,2]
[353023940,1739489447260,-153.0,0.00013937,2]
[353023941,1739489447271,-153.0,0.00013937,2]
[353023942,1739489447283,-270.77385282,0.00013943,2]
[353023943,1739489447292,-500.0,0.00013943,2]
[353023944,1739489447302,-500.0,0.00013943,2]
[353023945,1739489447312,-586.1801882,0.00013943,2]
[353023946,1739489447322,-500.0,0.00013943,2]
[353023947,1739489447331,-500.0,0.00013943,2]
[353023948,1739489447341,-2529.65,0.00013944,2]
[353023949,1739489447350,-2529.65,0.00013944,2]
[353023950,1739489447360,-2529.65,0.00013944,2]
[353023951,1739489447369,-2529.65,0.00013944,2]
[353023952,1739489447378,-2529.66,0.00013944,2]
[353023953,1739489447388,-500.0,0.00013945,2]
[353023954,1739489447398,-500.0,0.00013945,2]
[353023955,1739489447408,-500.0,0.00013945,2]
[353023956,1739489447418,-500.0,0.00013945,2]
[353023957,1739489447429,-500.0,0.00013945,2]
[353023958,1739489447439,-500.0,0.00013945,2]
[353023959,1739489447448,-2257.59,0.00013945,2]
[353023960,1739489447458,-500.0,0.00013945,2]
[353023961,1739489447469,-500.0,0.00013945,2]
[353023962,1739489447479,-11806.63,0.00013945,2]
[353023963,1739489447490,-500.0,0.00013945,2]
[353023964,1739489447499,-500.0,0.00013945,2]
[353023965,1739489447510,-500.0,0.00013945,2]
[353023966,1739489447520,-241.99,0.00013945,2]
[353023967,1739489447530,-531.17,0.00013945,2]
[353023968,1739489447539,-500.0,0.00013945,2]
[353023969,1739489447549,-551.33,0.00013945,2]
[353023970,1739489447559,-500.0,0.00013945,2]
[353023971,1739489447569,-500.0,0.00013945,2]
[353023972,1739489447579,-762.52,0.00013945,2]
[353023973,1739489447589,-911.72,0.00013945,2]
[353023974,1739489447599,-500.0,0.00013945,2]
[353023975,1739489447608,-500.0,0.00013945,2]
[353023976,1739489447618,-1136.08,0.00013945,2]
[353023977,1739489447627,-500.0,0.00013945,2]
[353023978,1739489447636,-832.81,0.00013945,2]
[353023979,1739489447646,-500.0,0.00013945,2]
[353023980,1739489447655,-500.0,0.00013945,2]
[353023981,1739489447665,-500.0,0.00013945,2]
[353023982,1739489447675,-500.0,0.00013945,2]
[353023983,1739489447685,-500.0,0.00013945,2]
[353023984,1739489447694,-500.0,0.00013945,2]
[353023985,1739489447705,-531.89,0.00013945,2]
[353023986,1739489447716,-632.95,0.00013945,2]
[353023987,1739489447726,-500.0,0.00013945,2]
[353023988,1739489447736,-944.75,0.00013945,2]
[353023989,1739489447746,-4589.83,0.00013945,2]
[353023990,1739489447756,-500.0,0.00013945,2]
[353023991,1739489447765,-534.19,0.00013945,2]
[353023992,1739489447775,-500.0,0.00013945,2]
[353023993,1739489447786,-500.0,0.00013945,2]
[353023994,1739489447796,-1494.82,0.00013945,2]
[353023995,1739489447805,-500.0,0.00013945,2]
[353023996,1739489447815,-500.0,0.00013945,2]
[353023997,1739489447824,-500.0,0.00013945,2]
[353023998,1739489447834,-576.99184582,0.00013968,2]
[353023999,1739489447844,-500.0,0.00013972,2]
[353024000,1739489447855,-168.2461105,0.00013973,2]
[353024001,1739489447865,-500.0,0.00014027,2]
[353024002,1739489447876,-2257.59,0.00014027,2]
[353024003,1739489447887,-500.0,0.00014027,2]
[353024004,1739489447898,-11806.63,0.00014027,2]
[353024005,1739489447908,-500.0,0.00014027,2]
[353024006,1739489447919,-500.0,0.00014027,2]
[353024007,1739489447929,-500.0,0.00014027,2]
[353024008,1739489447939,-551.33,0.00014027,2]
[353024009,1739489447950,-762.52,0.00014027,2]
[353024010,1739489447961,-911.72,0.00014027,2]
[353024011,1739489447971,-500.0,0.00014027,2]
[353024012,1739489447982,-500.0,0.00014027,2]
[353024013,1739489447993,-1136.08,0.00014027,2]
[353024014,1739489448004,-500.0,0.00014027,2]
[353024015,1739489448014,-832.81,0.00014027,2]
[353024016,1739489448024,-500.0,0.00014027,2]
[353024017,1739489448035,-500.0,0.00014027,2]
[353024018,1739489448046,-531.89,0.00014027,2]
[353024019,1739489448056,-500.0,0.00014027,2]
[353024020,1739489448066,-4589.83,0.00014027,2]
[353024021,1739489448077,-944.75,0.00014027,2]
[353024022,1739489448087,-500.0,0.00014027,2]
[353024023,1739489448097,-534.19,0.00014027,2]
[353024024,1739489448107,-500.0,0.00014027,2]
[353024025,1739489448117,-500.0,0.00014027,2]
[353024026,1739489448128,-1494.82,0.00014027,2]
[353024027,1739489448138,-500.0,0.00014027,2]
[353024028,1739489448152,-500.0,0.00014027,2]
[353024029,1739489448162,-307.1592609,0.00014055,2]
[353024030,1739489448172,-152.0,0.00014075,2]
[353024031,1739489448183,-576.99184582,0.00014091,2]
[353024032,1739489448195,-57.3452282,0.00014109,2]
[353024033,1739489448316,-442.6547718,0.00014109,2]
[353024034,1739489448326,-2257.59,0.00014109,2]
[353024035,1739489448338,-11806.63,0.00014109,2]
[353024036,1739489448349,-500.0,0.00014109,2]
[353024037,1739489448359,-500.0,0.00014109,2]
[353024038,1739489448369,-500.0,0.00014109,2]
[353024039,1739489448379,-551.33,0.00014109,2]
[353024040,1739489448390,-762.52,0.00014109,2]
[353024041,1739489448401,-911.72,0.00014109,2]
[353024042,1739489448412,-500.0,0.00014109,2]
[353024043,1739489448422,-500.0,0.00014109,2]
[353024044,1739489448433,-61.8786282,0.00014109,2]
[353024045,1739489448446,-1074.2013718,0.00014109,2]
[353024046,1739489448458,-500.0,0.00014109,2]
[353024047,1739489448468,-832.81,0.00014109,2]
[353024048,1739489448479,-500.0,0.00014109,2]
[353024049,1739489448490,-500.0,0.00014109,2]
[353024050,1739489448502,-531.89,0.00014109,2]
[353024051,1739489448512,-500.0,0.00014109,2]
[353024052,1739489448523,-4589.83,0.00014109,2]
[353024053,1739489448534,-944.75,0.00014109,2]
[353024054,1739489448545,-500.0,0.00014109,2]
[353024055,1739489448554,-534.19,0.00014109,2]
[353024056,1739489448565,-500.0,0.00014109,2]
[353024057,1739489448575,-500.0,0.00014109,2]
[353024058,1739489448587,-1494.82,0.00014109,2]
[353024059,1739489448597,-500.0,0.00014109,2]
[353024060,1739489448607,-13270.63763847,0.0001414,2]
[353024061,1739489448617,-261.89203581,0.00014141,2]
[353024062,1739489448627,-2257.59,0.00014191,2]
[353024063,1739489448638,-11806.63,0.00014191,2]
[353024064,1739489448648,-259.22,0.00014191,2]
[353024065,1739489448658,-500.0,0.00014191,2]
[353024066,1739489448668,-500.0,0.00014191,2]
[353024067,1739489448679,-551.33,0.00014191,2]
[353024068,1739489448689,-762.52,0.00014191,2]
[353024069,1739489448699,-911.72,0.00014191,2]
[353024070,1739489448709,-168.24,0.00014191,2]
[353024071,1739489448719,-500.0,0.00014191,2]
[353024072,1739489448730,-1136.08,0.00014191,2]
[353024073,1739489448740,-500.0,0.00014191,2]
[353024074,1739489448751,-832.81,0.00014191,2]
[353024075,1739489448761,-500.0,0.00014191,2]
[353024076,1739489448772,-500.0,0.00014191,2]
[353024077,1739489448783,-531.89,0.00014191,2]
[353024078,1739489448794,-500.0,0.00014191,2]
[353024079,1739489448805,-4589.83,0.00014191,2]
[353024080,1739489448815,-944.75,0.00014191,2]
[353024081,1739489448826,-500.0,0.00014191,2]
[353024082,1739489448837,-534.19,0.00014191,2]
[353024083,1739489448847,-500.0,0.00014191,2]
[353024084,1739489448857,-500.0,0.00014191,2]
[353024085,1739489448867,-1494.82,0.00014191,2]
[353024086,1739489448878,-500.0,0.00014191,2]
[353024087,1739489448889,-541.064,0.00014199,2]
[353024088,1739489448899,-151.0,0.000142,2]
[353024089,1739489448909,-151.0,0.000142,2]
[353024090,1739489448920,-500.0,0.00014224,2]
[353024091,1739489448930,-543.95386111,0.00014246,2]
[353024092,1739489448940,-883.0387355,0.00014255,2]
[353024093,1739489448953,-420.0,0.00014256,2]
[353024094,1739489448964,-911.87669258,0.00014273,5]
[353024095,1739489448974,-2257.59,0.00014273,2]
[353024096,1739489448986,-11806.63,0.00014273,2]
[353024097,1739489448996,-500.0,0.00014273,2]
[353024098,1739489449007,-500.0,0.00014273,2]
[353024099,1739489449017,-551.33,0.00014273,2]
[353024100,1739489449028,-762.52,0.00014273,2]
[353024101,1739489449038,-911.72,0.00014273,2]
[353024102,1739489449048,-500.0,0.00014273,2]
[353024103,1739489449059,-1136.08,0.00014273,2]
[353024104,1739489449071,-500.0,0.00014273,2]
[353024105,1739489449081,-832.81,0.00014273,2]
[353024106,1739489449092,-500.0,0.00014273,2]
[353024107,1739489449103,-500.0,0.00014273,2]
[353024108,1739489449114,-531.89,0.00014273,2]
[353024109,1739489449125,-500.0,0.00014273,2]
[353024110,1739489449135,-271.741878,0.00014273,2]
[353024111,1739489449149,-4589.83,0.00014273,2]
[353024112,1739489449159,-944.75,0.00014273,2]
[353024113,1739489449170,-500.0,0.00014273,2]
[353024114,1739489449180,-534.19,0.00014273,2]
[353024115,1739489449192,-500.0,0.00014273,2]
[353024116,1739489449203,-455.53,0.00014273,2]
[353024117,1739489449214,-440.478881,0.00014273,2]
[353024118,1739489449226,-440.478881,0.00014273,2]
[353024119,1739489449237,-243.892196,0.00014273,2]
[353024120,1739489449249,-1494.82,0.00014273,2]
[353024121,1739489449259,-243.892196,0.00014273,2]
[353024122,1739489449270,-500.0,0.00014273,2]
[353024123,1739489449281,-151.0,0.000143,2]
[353024124,1739489449291,-151.0,0.000143,2]
[353024125,1739489449302,-2636.43142941,0.000143,2]
[353024126,1739489449313,-2293.0,0.00014306,2]
[353024127,1739489449324,-150.0,0.00014306,2]
[353024128,1739489449334,-9737.97370574,0.00014349,2]
[353024129,1739489449345,-8783.3596807,0.00014356,5]
[353024130,1739489449356,-2257.59,0.00014356,2]
[353024131,1739489449366,-11806.63,0.00014356,2]
[353024132,1739489449376,-500.0,0.00014356,2]
[353024133,1739489449386,-500.0,0.00014356,2]
[353024134,1739489449396,-551.33,0.00014356,2]
[353024135,1739489449407,-762.52,0.00014356,2]
[353024136,1739489449416,-911.72,0.00014356,2]
[353024137,1739489449425,-500.0,0.00014356,2]
[353024138,1739489449546,-1136.08,0.00014356,2]
[353024139,1739489449556,-500.0,0.00014356,2]
[353024140,1739489449566,-832.81,0.00014356,2]
[353024141,1739489449576,-500.0,0.00014356,2]
[353024142,1739489449586,-1236.663852,0.00014356,2]
[353024143,1739489449595,-1236.663852,0.00014356,2]
[353024144,1739489449605,-500.0,0.00014356,2]
[353024145,1739489449615,-531.89,0.00014356,2]
[353024146,1739489449624,-500.0,0.00014356,2]
[353024147,1739489449633,-732.00502,0.00014356,2]
[353024148,1739489449643,-4589.83,0.00014356,2]
[353024149,1739489449652,-944.75,0.00014356,2]
[353024150,1739489449662,-732.00502,0.00014356,2]
[353024151,1739489449671,-500.0,0.00014356,2]
[353024152,1739489449680,-534.19,0.00014356,2]
[353024153,1739489449689,-500.0,0.00014356,2]
[353024154,1739489449698,-204.475992,0.00014356,2]
[353024155,1739489449707,-204.475992,0.00014356,2]
[353024156,1739489449717,-1494.82,0.00014356,2]
[353024157,1739489449727,-500.0,0.00014356,2]
[353024158,1739489449736,-250.0,0.00014358,2]
[353024159,1739489449745,-300.47,0.00014358,2]
[353024160,1739489449755,-372.03,0.00014358,2]
[353024161,1739489449769,-151.0,0.00014398,2]
[353024162,1739489449778,-5000.0,0.00014399,2]
[353024163,1739489449787,-5146.943,0.00014399,2]
[353024164,1739489449798,-30298.54612344,0.000144,5]
[353024165,1739489450274,-154.6488878,0.000136,2]
[353024166,1739489450283,-613.87,0.00013698,2]
[353024167,1739489450292,-503.50980569,0.00013698,2]
[353024168,1739489450302,-500.0,0.00013698,2]
[353024169,1739489450312,-500.0,0.00013698,2]
[353024170,1739489450321,-500.0,0.00013698,2]
[353024171,1739489450330,-183.98,0.000137,2]
[353024172,1739489450339,-183.98,0.000137,2]
[353024173,1739489450348,-183.98,0.000137,2]
[353024174,1739489450358,-183.98,0.000137,2]
[353024175,1739489450367,-183.98,0.000137,2]
[353024176,1739489450376,-183.98,0.000137,2]
[353024177,1739489450386,-183.98,0.000137,2]
[353024178,1739489450395,-183.98,0.000137,2]
[353024179,1739489450405,-183.98,0.000137,2]
[353024180,1739489450414,-183.98,0.000137,2]
[353024181,1739489450423,-183.98,0.000137,2]
[353024182,1739489450433,-183.98,0.000137,2]
[353024183,1739489450442,-183.98,0.000137,2]
[353024184,1739489450451,-183.98,0.000137,2]
[353024185,1739489450460,-183.98,0.000137,2]
[353024186,1739489450470,-183.98,0.000137,2]
[353024187,1739489450479,-183.98,0.000137,2]
[353024188,1739489450490,-613.87,0.0001378,2]
[353024189,1739489450500,-500.0,0.0001378,2]
[353024190,1739489450509,-613.87,0.00013863,2]
[353024191,1739489450519,-500.0,0.00013863,2]
[353024192,1739489450528,-613.87,0.00013945,2]
[353024193,1739489450538,-613.87,0.00014027,2]
[353024194,1739489450548,-613.87,0.00014109,2]
[353024195,1739489450557,-613.87,0.00014191,2]
[353024196,1739489450567,-396.0,0.00014265,2]
[353024197,1739489450576,-613.87,0.00014273,2]
[353024198,1739489450585,-613.87,0.00014356,2]
[353024199,1739489450595,-353.328922,0.00014356,2]
[353024200,1739489450604,-544463.23258327,0.000144,5]
[353024204,1739489949501,150.0,0.00017947,120]
[353024205,1739489949523,410.0,0.00017947,120]
[353024210,1739490405151,-154.00199299,0.00010685,2]
[353024259,1739490632044,-352.932872,0.00010685,2]
[353024262,1739490632054,-1100.0,0.00012993,2]
[353024263,1739490632064,-461.59347668,0.00013598,2]
[353024265,1739490632073,-156.17108917,0.00013598,2]
[353024267,1739490632083,-461.59347665,0.00013639,2]
[353024269,1739490632093,-402.30485187,0.0001364,2]
[353024272,1739490632103,-461.59347665,0.00013681,2]
[353024274,1739490632113,-217.0,0.00013696,2]
[353024276,1739490632123,-500.0,0.00013697,2]
[353024278,1739490632132,-500.0,0.00013697,2]
[353024279,1739490632143,-500.0,0.00013697,2]
[353024281,1739490632152,-350.0,0.00013697,2]
[353024283,1739490632161,-500.0,0.00013697,2]
[353024285,1739490632171,-500.0,0.00013697,2]
[353024288,1739490632180,-403.31745523,0.00013697,2]
[353024290,1739490632189,-500.0,0.00013697,2]
[353024292,1739490632199,-500.0,0.00013697,2]
[353024294,1739490632208,-272.29809738,0.00013697,2]
[353024296,1739490632218,-500.0,0.00013697,2]
[353024297,1739490632227,-500.0,0.00013697,2]
[353024300,1739490632237,-500.0,0.00013697,2]
[353024302,1739490632247,-500.0,0.00013697,2]
[353024304,1739490632256,-500.0,0.00013697,2]
[353024306,1739490632266,-500.0,0.00013697,2]
[353024308,1739490632275,-500.0,0.00013697,2]
[353024310,1739490632285,-500.0,0.00013697,2]
[353024312,1739490632294,-300.0,0.00013697,2]
[353024314,1739490632303,-500.0,0.00013697,2]
[353024316,1739490632313,-500.0,0.00013697,2]
[353024318,1739490632323,-500.0,0.00013697,2]
[353024320,1739490632332,-500.0,0.00013697,2]
[353024322,1739490632341,-457.22980974,0.00013697,2]
[353024324,1739490632351,-500.0,0.00013697,2]
[353024326,1739490632359,-500.0,0.00013697,2]
[353024328,1739490632369,-500.0,0.00013697,2]
[353024330,1739490632378,-500.0,0.00013697,2]
[353024332,1739490632387,-500.0,0.00013697,2]
[353024334,1739490632396,-500.0,0.00013697,2]
[353024336,1739490632406,-500.0,0.00013697,2]
[353024338,1739490632415,-500.0,0.00013697,2]
[353024340,1739490632424,-500.0,0.00013697,2]
[353024342,1739490632434,-500.0,0.00013697,2]
[353024344,1739490632443,-500.0,0.00013697,2]
[353024346,1739490632452,-500.0,0.00013697,2]
[353024348,1739490632461,-500.0,0.00013697,2]
[353024350,1739490632471,-500.0,0.00013698,2]
[353024352,1739490632480,-500.0,0.00013698,2]
[353024354,1739490632490,-500.0,0.00013698,2]
[353024356,1739490632499,-500.0,0.00013698,2]
[353024358,1739490632509,-500.0,0.00013698,2]
[353024360,1739490632518,-500.0,0.00013698,2]
[353024362,1739490632530,-500.0,0.00013698,2]
[353024364,1739490632544,-502.42163637,0.00013698,2]
[353024366,1739490632553,-500.0,0.00013698,2]
[353024368,1739490632563,-500.0,0.00013698,2]
[353024370,1739490632572,-503.36946444,0.00013698,2]
[353024372,1739490632582,-500.0,0.00013698,2]
[353024374,1739490632591,-500.0,0.00013698,2]
[353024376,1739490632600,-500.0,0.00013698,2]
[353024378,1739490632609,-367.73682754,0.00013698,2]
[353024380,1739490632619,-500.0,0.00013698,2]
[353024382,1739490632628,-500.0,0.00013698,2]
[353024384,1739490632637,-500.0,0.00013698,2]
[353024386,1739490632647,-500.0,0.00013698,2]
[353024388,1739490632656,-500.0,0.00013698,2]
[353024390,1739490632665,-531.85326901,0.00013698,2]
[353024392,1739490632674,-500.0,0.00013698,2]
[353024394,1739490632683,-369.33137316,0.00013698,2]
[353024396,1739490632692,-500.0,0.00013698,2]
[353024398,1739490632701,-504.12616618,0.00013698,2]
[353024400,1739490632710,-500.0,0.00013698,2]
[353024403,1739490632720,-500.0,0.00013698,2]
[353024405,1739490632730,-500.0,0.00013698,2]
[353024406,1739490632739,-502.45778128,0.00013698,2]
[353024409,1739490632748,-500.0,0.00013698,2]
[353024411,1739490632758,-500.0,0.00013698,2]
[353024413,1739490632768,-503.42203224,0.00013698,2]
[353024415,1739490632778,-500.0,0.00013698,2]
[353024417,1739490632787,-500.0,0.00013698,2]
[353024419,1739490632796,-500.0,0.00013698,2]
[353024421,1739490632806,-440.76142135,0.00013698,2]
[353024423,1739490632815,-500.0,0.00013698,2]
[353024425,1739490632825,-500.0,0.00013698,2]
[353024427,1739490632834,-500.0,0.00013698,2]
[353024429,1739490632843,-500.0,0.00013698,2]
[353024431,1739490632852,-500.0,0.00013698,2]
[353024433,1739490632861,-500.0,0.00013698,2]
[353024435,1739490632871,-500.0,0.00013698,2]
[353024437,1739490632881,-500.0,0.00013698,2]
[353024439,1739490632890,-500.0,0.00013698,2]
[353024441,1739490632899,-503.00051377,0.00013698,2]
[353024443,1739490632908,-502.9965774,0.00013698,2]
[353024445,1739490632918,-500.0,0.00013698,2]
[353024447,1739490632927,-500.0,0.00013698,2]
[353024449,1739490632937,-500.0,0.00013698,2]
[353024451,1739490632947,-500.0,0.00013698,2]
[353024453,1739490632955,-500.0,0.00013698,2]
[353024455,1739490632965,-500.0,0.00013698,2]
[353024457,1739490632974,-501.96388742,0.00013698,2]
[353024459,1739490632984,-500.0,0.00013698,2]
[353024461,1739490632994,-500.0,0.00013698,2]
[353024463,1739490633004,-500.0,0.00013698,2]
[353024465,1739490633013,-500.0,0.00013698,2]
[353024467,1739490633023,-500.0,0.00013698,2]
[353024469,1739490633033,-337.73582402,0.00013698,2]
[353024472,1739490633048,-175.5090575,0.00013698,2]
[353024474,1739490633058,-500.0,0.00013698,2]
[353024476,1739490633068,-500.0,0.00013698,2]
[353024478,1739490633078,-500.0,0.00013698,2]
[353024480,1739490633087,-500.0,0.00013698,2]
[353024482,1739490633097,-500.0,0.00013698,2]
[353024484,1739490633106,-500.0,0.00013698,2]
[353024486,1739490633115,-501.22156388,0.00013698,2]
[353024488,1739490633125,-500.0,0.00013698,2]
[353024490,1739490633135,-500.0,0.00013698,2]
[353024492,1739490633145,-500.0,0.00013698,2]
[353024494,1739490633154,-482.64464465,0.00013698,2]
[353024496,1739490633164,-500.0,0.00013698,2]
[353024498,1739490633173,-500.0,0.00013698,2]
[353024500,1739490633183,-500.0,0.00013698,2]
[353024502,1739490633193,-507.8111669,0.00013698,2]
[353024504,1739490633202,-332.83665471,0.00013698,2]
[353024507,1739490633220,-92.36547949,0.00013698,2]
[353024509,1739490633229,-500.0,0.00013698,2]
[353024511,1739490633239,-500.0,0.00013698,2]
[353024513,1739490633248,-500.0,0.00013698,2]
[353024515,1739490633258,-500.0,0.00013698,2]
[353024517,1739490633268,-500.0,0.00013698,2]
[353024519,1739490633278,-500.0,0.00013698,2]
[353024521,1739490633288,-500.0,0.00013698,2]
[353024523,1739490633298,-500.0,0.00013698,2]
[353024525,1739490633310,-500.0,0.00013698,2]
[353024527,1739490633320,-500.0,0.00013698,2]
[353024529,1739490633330,-500.0,0.00013698,2]
[353024531,1739490633339,-500.0,0.00013698,2]
[353024533,1739490633349,-500.0,0.00013698,2]
[353024535,1739490633360,-500.0,0.00013698,2]
[353024537,1739490633370,-502.75991926,0.00013698,2]
[353024539,1739490633380,-500.0,0.00013698,2]
[353024540,1739490633390,-500.0,0.00013698,2]
[353024542,1739490633400,-507.28860229,0.00013698,2]